fUSD/lending_fUSD_20241224
["ID","MTS","AMOUNT","RATE_DAILY","PERIOD"]
[346488243,1735007437678,-831.51,0.00013698,2]
[346488244,1735007437687,-862.2,0.00013698,2]
[346488245,1735007437696,-500.0,0.00013698,2]
[346488246,1735007437705,-500.0,0.00013698,2]
[346488247,1735007437714,-513.97215065,0.00013698,2]
[346488248,1735007437724,-500.0,0.00013698,2]
[346488249,1735007437734,-417.76343565,0.00013698,2]
[346488250,1735007437744,-840.98,0.00013698,2]
[346488251,1735007437753,-500.0,0.00013698,2]
[346488252,1735007437763,-710.37,0.00013698,2]
[346488253,1735007437772,-500.0,0.00013698,2]
[346488254,1735007437781,-511.09,0.00013698,2]
[346488255,1735007437790,-500.0,0.00013698,2]
[346488256,1735007437800,-500.0,0.00013698,2]
[346488257,1735007437809,-500.0,0.00013698,2]
[346488258,1735007437819,-1144.42,0.00013698,2]
[346488259,1735007438110,-500.0,0.00013698,2]
[346488260,1735007438120,-675.71,0.00013698,2]
[346488261,1735007438129,-1450.49,0.00013698,2]
[346488262,1735007438139,-505.90778559,0.00013698,2]
[346488263,1735007438147,-618.2052718,0.00013698,2]
[346488264,1735007438157,-915.2,0.00013698,2]
[346488265,1735007438166,-504.10954128,0.00013698,2]
[346488266,1735007438175,-521.96,0.00013698,2]
[346488267,1735007438185,-608.78,0.00013698,2]
[346488268,1735007438194,-511.01759929,0.00013698,2]
[346488269,1735007438203,-652.93,0.00013698,2]
[346488270,1735007438212,-505.15841874,0.00013698,2]
[346488271,1735007438222,-759.0,0.00013698,2]
[346488272,1735007438232,-583.2,0.00013698,2]
[346488273,1735007438241,-679.37,0.00013698,2]
[346488274,1735007438251,-569.4,0.00013698,2]
[346488275,1735007438260,-506.29818866,0.00013698,2]
[346488276,1735007438269,-1679.98,0.00013698,2]
[346488277,1735007438278,-693.77,0.00013698,2]
[346488278,1735007438287,-423.72545609,0.00013698,2]
[346488279,1735007438296,-500.0,0.00013698,2]
[346488280,1735007438306,-701.37,0.00013698,2]
[346488281,1735007438315,-512.18355182,0.00013698,2]
[346488282,1735007438325,-500.0,0.00013698,2]
[346488283,1735007438335,-508.72663675,0.00013698,2]
[346488285,1735007438344,-508.38182672,0.00013698,2]
[346488287,1735007438353,-500.0,0.00013698,2]
[346488289,1735007438363,-502.12,0.00013698,2]
[346488290,1735007438372,-524.76,0.00013698,2]
[346488291,1735007438381,-507.4293604,0.00013698,2]
[346488292,1735007438393,-3252.72,0.00013698,2]
[346488293,1735007438403,-3000.0,0.00013698,2]
[346488294,1735007438412,-500.0,0.00013698,2]
[346488295,1735007438422,-1154.4,0.00013698,2]
[346488296,1735007438432,-709.56,0.00013698,2]
[346488297,1735007438441,-504.92283113,0.00013698,2]
[346488298,1735007438451,-500.0,0.00013698,2]
[346488299,1735007438461,-503.75894771,0.00013698,2]
[346488300,1735007438471,-1301.45,0.00013698,2]
[346488301,1735007438481,-500.0,0.00013698,2]
[346488302,1735007438491,-500.0,0.00013698,2]
[346488303,1735007438501,-500.0,0.00013698,2]
[346488304,1735007438510,-611.77,0.00013698,2]
[346488305,1735007438520,-963.98,0.00013698,2]
[346488306,1735007438530,-500.0,0.00013698,2]
[346488307,1735007438540,-524.55670711,0.00013698,2]
[346488308,1735007438549,-7171.2,0.00013698,2]
[346488310,1735007438559,-710.65,0.00013698,2]
[346488311,1735007438568,-618.56,0.00013698,2]
[346488312,1735007438578,-500.0,0.00013698,2]
[346488313,1735007438588,-500.0,0.00013698,2]
[346488314,1735007438597,-726.77,0.00013698,2]
[346488315,1735007438606,-500.0,0.00013698,2]
[346488316,1735007438616,-508.14886078,0.00013698,2]
[346488317,1735007438626,-500.0,0.00013698,2]
[346488318,1735007438635,-501.84847437,0.00013698,2]
[346488319,1735007438644,-512.05259894,0.00013698,2]
[346488320,1735007438654,-669.37,0.00013698,2]
[346488321,1735007438663,-507.72636115,0.00013698,2]
[346488322,1735007438673,-500.0,0.00013698,2]
[346488323,1735007438682,-507.95420717,0.00013698,2]
[346488324,1735007438691,-2426.23,0.00013698,2]
[346488325,1735007438701,-500.0,0.00013698,2]
[346488326,1735007438710,-500.0,0.00013698,2]
[346488327,1735007438720,-553.51028897,0.00013698,2]
[346488328,1735007438730,-1646.6,0.00013698,2]
[346488329,1735007438739,-500.0,0.00013698,2]
[346488330,1735007438749,-500.0,0.00013698,2]
[346488331,1735007438759,-503.41312166,0.00013698,2]
[346488332,1735007438768,-954.73,0.00013698,2]
[346488333,1735007438777,-768.51,0.00013698,2]
[346488334,1735007438788,-501.29907435,0.00013698,2]
[346488335,1735007438797,-7137.83,0.00013698,2]
[346488336,1735007438806,-501.32,0.00013698,2]
[346488337,1735007438815,-502.10891141,0.00013698,2]
[346488338,1735007438825,-510.97899046,0.00013698,2]
[346488339,1735007438834,-444.47546243,0.00013698,2]
[346488340,1735007438844,-681.84,0.00013698,2]
[346488341,1735007438854,-1709.56,0.00013698,2]
[346488342,1735007438863,-500.0,0.00013698,2]
[346488343,1735007438872,-790.41,0.00013698,2]
[346488344,1735007438882,-1709.11,0.00013698,2]
[346488345,1735007438891,-899.06,0.00013698,2]
[346488346,1735007438900,-506.16636223,0.00013698,2]
[346488347,1735007438910,-1723.42,0.00013698,2]
[346488348,1735007438920,-510.67122813,0.00013698,2]
[346488349,1735007438930,-2521.17,0.00013698,2]
[346488350,1735007438939,-507.74658965,0.00013698,2]
[346488351,1735007438949,-630.14,0.00013698,2]
[346488352,1735007438959,-500.0,0.00013698,2]
[346488354,1735007438969,-2292.47,0.00013698,2]
[346488356,1735007438979,-512.4440844,0.00013698,2]
[346488358,1735007438989,-516.46235123,0.00013698,2]
[346488359,1735007438998,-500.0,0.00013698,2]
[346488360,1735007439008,-521.93,0.00013698,2]
[346488361,1735007439017,-500.0,0.00013698,2]
[346488362,1735007439027,-500.0,0.00013698,2]
[346488363,1735007439037,-504.59723029,0.00013698,2]
[346488364,1735007439046,-4440.78,0.00013698,2]
[346488365,1735007439056,-1044.76,0.00013698,2]
[346488366,1735007439065,-500.0,0.00013698,2]
[346488367,1735007439075,-509.37973857,0.00013698,2]
[346488368,1735007439084,-1038.34,0.00013698,2]
[346488369,1735007439093,-4785.48,0.00013698,2]
[346488370,1735007439103,-821.86,0.00013698,2]
[346488371,1735007439112,-500.0,0.00013698,2]
[346488373,1735007439121,-620.5,0.00013698,2]
[346488375,1735007439130,-1762.88,0.00013698,2]
[346488377,1735007439139,-500.0,0.00013698,2]
[346488379,1735007439148,-500.0,0.00013698,2]
[346488381,1735007439158,-532.46,0.00013698,2]
[346488383,1735007439167,-503.01051094,0.00013698,2]
[346488385,1735007439176,-500.0,0.00013698,2]
[346488387,1735007439185,-1236.75,0.00013698,2]
[346488389,1735007439196,-2845.46825742,0.00013698,2]
[346488429,1735007439644,-281.13253776,0.00013698,2]
[346488566,1735007440999,-266.49562289,0.00013598,2]
[346488573,1735007441055,-2923.12220336,0.00013598,2]
[346488575,1735007441065,-162.21920482,0.00013698,2]
[346488577,1735007441074,-503.78604124,0.00013698,2]
[346488579,1735007441083,-500.0,0.00013698,2]
[346488581,1735007441091,-5174.20957601,0.00013698,2]
[346488583,1735007441102,-2665.69042399,0.00013698,2]
[346488585,1735007441111,-720.23,0.00013698,2]
[346488587,1735007441120,-500.0,0.00013698,2]
[346488589,1735007441129,-500.0,0.00013698,2]
[346488591,1735007441138,-482.67607237,0.00013698,2]
[346488593,1735007441147,-500.0,0.00013698,2]
[346488595,1735007441156,-317.3034341,0.00013698,2]
[346488597,1735007441165,-996.23,0.00013698,2]
[346488599,1735007441174,-302.71058417,0.00013698,2]
[346488601,1735007441183,-727.08,0.00013698,2]
[346488603,1735007441192,-500.0,0.00013698,2]
[346488605,1735007441201,-500.0,0.00013698,2]
[346488607,1735007441211,-770.83,0.00013698,2]
[346488609,1735007441220,-500.0,0.00013698,2]
[346488611,1735007441233,-1040.44,0.00013698,2]
[346488613,1735007441242,-3105.17,0.00013698,2]
[346488615,1735007441252,-547.42157803,0.00013698,2]
[346488617,1735007441260,-3382.29,0.00013698,2]
[346488619,1735007441269,-506.13309886,0.00013698,2]
[346488621,1735007441278,-685.18,0.00013698,2]
[346488623,1735007441287,-500.0,0.00013698,2]
[346488625,1735007441296,-501.90189471,0.00013698,2]
[346488627,1735007441306,-718.55,0.00013698,2]
[346488629,1735007441315,-1300.07,0.00013698,2]
[346488631,1735007441324,-513.07457118,0.00013698,2]
[346488633,1735007441333,-500.0,0.00013698,2]
[346488635,1735007441342,-428.34851687,0.00013698,2]
[346488637,1735007441351,-321.57747839,0.00013698,2]
[346488639,1735007441363,-178.42252161,0.00013698,2]
[346488641,1735007441372,-543.70748139,0.00013698,2]
[346488644,1735007441383,-290.811,0.00013698,2]
[346488646,1735007441397,-618.9511666,0.00013698,2]
[346488648,1735007441408,-722.18035201,0.00013698,2]
[346488650,1735007441418,-152.983217,0.00013698,2]
[346488652,1735007441427,-673.20034878,0.00013698,2]
[346488654,1735007441438,-663.95965122,0.00013698,2]
[346488656,1735007441447,-547.29,0.00013698,2]
[346488658,1735007441455,-1260.32,0.00013698,2]
[346488660,1735007441464,-1186.31,0.00013698,2]
[346488662,1735007441475,-703.31,0.00013698,2]
[346488664,1735007441485,-790.65,0.00013698,2]
[346488665,1735007441494,-500.0,0.00013698,2]
[346488667,1735007441503,-2693.62,0.00013698,2]
[346488669,1735007441512,-2195.68,0.00013698,2]
[346488671,1735007441522,-494.11231477,0.00013698,2]
[346488673,1735007441531,-2599.99,0.00013698,2]
[346488675,1735007441540,-508.92818627,0.00013698,2]
[346488677,1735007441549,-500.0,0.00013698,2]
[346488679,1735007441558,-510.67555257,0.00013698,2]
[346488681,1735007441567,-495.89117609,0.00013698,2]
[346488683,1735007441576,-5027.26,0.00013698,2]
[346488685,1735007441585,-500.0,0.00013698,2]
[346488687,1735007441594,-500.0,0.00013698,2]
[346488689,1735007441603,-500.0,0.00013698,2]
[346488691,1735007441612,-18698.72,0.00013698,2]
[346488693,1735007441621,-1181.22,0.00013698,2]
[346488695,1735007441630,-970.77,0.00013698,2]
[346488697,1735007441639,-505.86,0.00013698,2]
[346488699,1735007441648,-506.9,0.00013698,2]
[346488701,1735007441658,-500.0,0.00013698,2]
[346488703,1735007441667,-506.51666989,0.00013698,2]
[346488705,1735007441676,-776.44,0.00013698,2]
[346488707,1735007441685,-500.0,0.00013698,2]
[346488709,1735007441694,-818.27,0.00013698,2]
[346488711,1735007441703,-644.59,0.00013698,2]
[346488713,1735007441712,-500.0,0.00013698,2]
[346488715,1735007441722,-1647.02,0.00013698,2]
[346488717,1735007441732,-500.0,0.00013698,2]
[346488719,1735007441741,-992.28,0.00013698,2]
[346488721,1735007441750,-508.61903338,0.00013698,2]
[346488723,1735007441759,-437.43081453,0.00013698,2]
[346488725,1735007441772,-67.80389105,0.00013698,2]
[346488727,1735007441781,-902.15232735,0.00013698,2]
[346488730,1735007441793,-3190.17767265,0.00013698,2]
[346488732,1735007441802,-976.56,0.00013698,2]
[346488733,1735007441811,-503.04313201,0.00013698,2]
[346488735,1735007441820,-1979.42,0.00013698,2]
[346488737,1735007441829,-2148.61,0.00013698,2]
[346488739,1735007441838,-919.1,0.00013698,2]
[346488741,1735007441847,-1423.24,0.00013698,2]
[346488743,1735007441855,-505.92538252,0.00013698,2]
[346488745,1735007441864,-500.0,0.00013698,2]
[346488747,1735007441873,-506.85783716,0.00013698,2]
[346488749,1735007441882,-1852.35,0.00013698,2]
[346488751,1735007441890,-652.86,0.00013698,2]
[346488753,1735007441899,-502.96609813,0.00013698,2]
[346488755,1735007441908,-705.61,0.00013698,2]
[346488757,1735007441917,-467.45432117,0.00013698,2]
[346488759,1735007441926,-1677.16,0.00013698,2]
[346488761,1735007441935,-503.762352,0.00013698,2]
[346488763,1735007441944,-774.41,0.00013698,2]
[346488765,1735007441952,-1360.94,0.00013698,2]
[346488767,1735007441962,-500.0,0.00013698,2]
[346488769,1735007441971,-510.01234306,0.00013698,2]
[346488771,1735007441980,-5795.29,0.00013698,2]
[346488773,1735007441989,-3363.54,0.00013698,2]
[346488775,1735007441997,-1300.57,0.00013698,2]
[346488777,1735007442006,-507.75331408,0.00013698,2]
[346488779,1735007442015,-500.0,0.00013698,2]
[346488781,1735007442024,-1505.26,0.00013698,2]
[346488783,1735007442032,-500.0,0.00013698,2]
[346488784,1735007442041,-1701.58,0.00013698,2]
[346488785,1735007442050,-500.0,0.00013698,2]
[346488786,1735007442059,-600.17,0.00013698,2]
[346488787,1735007442069,-1373.23,0.00013698,2]
[346488788,1735007442077,-500.0,0.00013698,2]
[346488789,1735007442086,-601.28,0.00013698,2]
[346488790,1735007442095,-1001.08,0.00013698,2]
[346488791,1735007442104,-1121.55,0.00013698,2]
[346488792,1735007442113,-10929.52,0.00013698,2]
[346488793,1735007442122,-1558.76,0.00013698,2]
[346488794,1735007442132,-2563.46,0.00013698,2]
[346488795,1735007442141,-500.0,0.00013698,2]
[346488797,1735007442150,-2226.51,0.00013698,2]
[346488799,1735007442159,-500.0,0.00013698,2]
[346488801,1735007442169,-517.54265087,0.00013698,2]
[346488803,1735007442178,-950.58,0.00013698,2]
[346488805,1735007442187,-506.10485207,0.00013698,2]
[346488807,1735007442196,-504.56758957,0.00013698,2]
[346488809,1735007442205,-4072.19,0.00013698,2]
[346488811,1735007442214,-505.66487347,0.00013698,2]
[346488813,1735007442223,-1166.78,0.00013698,2]
[346488815,1735007442234,-898.08,0.00013698,2]
[346488817,1735007442243,-500.0,0.00013698,2]
[346488819,1735007442252,-600.61,0.00013698,2]
[346488821,1735007442261,-1152.46,0.00013698,2]
[346488823,1735007442270,-2232.16,0.00013698,2]
[346488825,1735007442279,-4521.11,0.00013698,2]
[346488827,1735007442288,-500.0,0.00013698,2]
[346488829,1735007442297,-767.98,0.00013698,2]
[346488831,1735007442306,-631.49,0.00013698,2]
[346488833,1735007442315,-4342.25,0.00013698,2]
[346488835,1735007442324,-505.22335908,0.00013698,2]
[346488837,1735007442333,-507.08285773,0.00013698,2]
[346488839,1735007442342,-1702.78,0.00013698,2]
[346488841,1735007442351,-729.56,0.00013698,2]
[346488843,1735007442360,-4520.53,0.00013698,2]
[346488845,1735007442369,-500.0,0.00013698,2]
[346488847,1735007442378,-499.91642408,0.00013698,2]
[346488849,1735007442387,-12876.12,0.00013698,2]
[346488851,1735007442401,-963.49,0.00013698,2]
[346488853,1735007442411,-506.55864246,0.00013698,2]
[346488855,1735007442420,-10210.08,0.00013698,2]
[346488857,1735007442429,-795.43,0.00013698,2]
[346488859,1735007442440,-500.0,0.00013698,2]
[346488861,1735007442449,-500.0,0.00013698,2]
[346488863,1735007442458,-1219.46,0.00013698,2]
[346488865,1735007442468,-1923.15,0.00013698,2]
[346488866,1735007442478,-504.38187681,0.00013698,2]
[346488868,1735007442487,-2209.69,0.00013698,2]
[346488871,1735007442496,-502.26032027,0.00013698,2]
[346488872,1735007442506,-2586.86,0.00013698,2]
[346488875,1735007442516,-500.0,0.00013698,2]
[346488876,1735007442525,-236.57514006,0.00013698,2]
[346488878,1735007442534,-507.16439677,0.00013698,2]
[346488880,1735007442543,-707.35,0.00013698,2]
[346488882,1735007442552,-3929.42,0.00013698,2]
[346488884,1735007442561,-1741.33,0.00013698,2]
[346488886,1735007442570,-501.09663742,0.00013698,2]
[346488889,1735007442580,-506.93682764,0.00013698,2]
[346488891,1735007442589,-513.13012148,0.00013698,2]
[346488892,1735007442598,-500.0,0.00013698,2]
[346488894,1735007442607,-502.79967165,0.00013698,2]
[346488896,1735007442616,-833.25,0.00013698,2]
[346488898,1735007442625,-509.26169688,0.00013698,2]
[346488900,1735007442634,-506.48667545,0.00013698,2]
[346488902,1735007442643,-1443.18,0.00013698,2]
[346488904,1735007442652,-633.45535791,0.00013698,2]
[346488906,1735007442660,-500.0,0.00013698,2]
[346488908,1735007442670,-1311.55,0.00013698,2]
[346488910,1735007442680,-508.02740442,0.00013698,2]
[346488912,1735007442688,-1736.83,0.00013698,2]
[346488914,1735007442697,-4560.51,0.00013698,2]
[346488916,1735007442708,-9665.26,0.00013698,2]
[346488918,1735007442717,-2582.87,0.00013698,2]
[346488920,1735007442726,-5208.16,0.00013698,2]
[346488922,1735007442735,-501.66652402,0.00013698,2]
[346488924,1735007442743,-500.0,0.00013698,2]
[346488926,1735007442752,-851.27,0.00013698,2]
[346488928,1735007442761,-508.44,0.00013698,2]
[346488930,1735007442770,-2449.11,0.00013698,2]
[346488932,1735007442779,-1405.55,0.00013698,2]
[346488934,1735007442788,-500.0,0.00013698,2]
[346488936,1735007442798,-2273.62,0.00013698,2]
[346488938,1735007442807,-611.5768509,0.00013698,2]
[346488941,1735007442824,-2028.9431491,0.00013698,2]
[346488943,1735007442834,-502.27166535,0.00013698,2]
[346488945,1735007442843,-3017.77,0.00013698,2]
[346488947,1735007442851,-508.9626171,0.00013698,2]
[346488949,1735007442861,-504.97382528,0.00013698,2]
[346488951,1735007442871,-500.0,0.00013698,2]
[346488953,1735007442880,-574.587531,0.00013698,2]
[346488955,1735007442889,-622.94,0.00013698,2]
[346488957,1735007442897,-2612.67,0.00013698,2]
[346488959,1735007442907,-2189.27,0.00013698,2]
[346488961,1735007442916,-151.0,0.00013698,2]
[346488963,1735007442925,-941.44,0.00013698,2]
[346488965,1735007442934,-504.63589794,0.00013698,2]
[346488967,1735007442943,-500.0,0.00013698,2]
[346488969,1735007442952,-2315.01,0.00013698,2]
[346488971,1735007442961,-151.0,0.00013698,2]
[346488973,1735007442970,-601.31,0.00013698,2]
[346488975,1735007442979,-10263.48,0.00013698,2]
[346488977,1735007442988,-712.83,0.00013698,2]
[346488979,1735007442997,-1007.54,0.00013698,2]
[346488981,1735007443006,-1279.44431423,0.00013698,2]
[346488983,1735007443018,-3573.98980047,0.00013698,2]
[346488986,1735007443033,-937.57867252,0.00013698,2]
[346489035,1735007443480,-5131.51721278,0.00013698,2]
[346489038,1735007443490,-7363.44,0.00013698,2]
[346489041,1735007443500,-526.67553107,0.00013698,2]
[346489045,1735007443509,-500.0,0.00013698,2]
[346489047,1735007443518,-500.0,0.00013698,2]
[346489050,1735007443527,-500.0,0.00013698,2]
[346489053,1735007443536,-503.28574315,0.00013698,2]
[346489056,1735007443546,-688.94,0.00013698,2]
[346489059,1735007443555,-501.32578271,0.00013698,2]
[346489063,1735007443565,-1032.65,0.00013698,2]
[346489065,1735007443573,-500.0,0.00013698,2]
[346489068,1735007443582,-504.00671185,0.00013698,2]
[346489071,1735007443591,-4342.99,0.00013698,2]
[346489074,1735007443600,-10449.35,0.00013698,2]
[346489077,1735007443609,-588.1,0.00013698,2]
[346489080,1735007443619,-500.88261057,0.00013698,2]
[346489082,1735007443627,-507.73659502,0.00013698,2]
[346489085,1735007443637,-500.0,0.00013698,2]
[346489088,1735007443646,-3434.19,0.00013698,2]
[346489091,1735007443655,-511.58874062,0.00013698,2]
[346489094,1735007443664,-500.0,0.00013698,2]
[346489097,1735007443673,-507.44572105,0.00013698,2]
[346489100,1735007443682,-511.24041518,0.00013698,2]
[346489103,1735007443691,-512.94,0.00013698,2]
[346489106,1735007443701,-3118.55,0.00013698,2]
[346489109,1735007443710,-502.15886551,0.00013698,2]
[346489112,1735007443719,-1506.32,0.00013698,2]
[346489115,1735007443728,-4466.69,0.00013698,2]
[346489118,1735007443737,-21837.29,0.00013698,2]
[346489120,1735007443747,-551.66,0.00013698,2]
[346489122,1735007443756,-1631.28,0.00013698,2]
[346489124,1735007443765,-500.0,0.00013698,2]
[346489127,1735007443774,-6544.83,0.00013698,2]
[346489130,1735007443783,-500.0,0.00013698,2]
[346489133,1735007443792,-500.0,0.00013698,2]
[346489136,1735007443802,-652.5,0.00013698,2]
[346489139,1735007443811,-770.65,0.00013698,2]
[346489142,1735007443820,-1839.01,0.00013698,2]
[346489145,1735007443829,-504.5529692,0.00013698,2]
[346489148,1735007443838,-1031.69,0.00013698,2]
[346489151,1735007443847,-26195.86,0.00013698,2]
[346489154,1735007443856,-500.0,0.00013698,2]
[346489157,1735007443866,-904.49,0.00013698,2]
[346489160,1735007443875,-406.44215122,0.00013698,2]
[346489163,1735007443884,-535.15,0.00013698,2]
[346489166,1735007443893,-504.07991457,0.00013698,2]
[346489169,1735007443903,-500.0,0.00013698,2]
[346489172,1735007443912,-2126.8,0.00013698,2]
[346489195,1735007444069,-5169.23,0.00013698,2]
[346489198,1735007444083,-500.0,0.00013698,2]
[346489200,1735007444093,-500.0,0.00013698,2]
[346489202,1735007444102,-815.25,0.00013698,2]
[346489204,1735007444111,-503.57996775,0.00013698,2]
[346489206,1735007444120,-2728.18,0.00013698,2]
[346489208,1735007444129,-608.77,0.00013698,2]
[346489210,1735007444138,-500.0,0.00013698,2]
[346489212,1735007444147,-506.48889515,0.00013698,2]
[346489214,1735007444156,-831.94,0.00013698,2]
[346489216,1735007444165,-500.0,0.00013698,2]
[346489218,1735007444175,-775.03,0.00013698,2]
[346489220,1735007444184,-16031.61,0.00013698,2]
[346489221,1735007444194,-500.0,0.00013698,2]
[346489224,1735007444203,-2600.82,0.00013698,2]
[346489226,1735007444212,-502.46470178,0.00013698,2]
[346489227,1735007444221,-1498.97,0.00013698,2]
[346489229,1735007444230,-1530.64,0.00013698,2]
[346489231,1735007444239,-506.84432491,0.00013698,2]
[346489233,1735007444248,-1261.14,0.00013698,2]
[346489235,1735007444257,-980.94,0.00013698,2]
[346489237,1735007444267,-687.04,0.00013698,2]
[346489238,1735007444276,-835.46,0.00013698,2]
[346489239,1735007444286,-746.28,0.00013698,2]
[346489240,1735007444295,-503.56136402,0.00013698,2]
[346489241,1735007444304,-153.87,0.00013699,2]
[346489242,1735007444314,-200.0,0.00013699,2]
[346489243,1735007444323,-500.0,0.000137,5]
[346489244,1735007444332,-5694.64021943,0.0001375,2]
[346489245,1735007444341,-437.09,0.00013753,2]
[346489246,1735007444350,-437.09,0.00013753,2]
[346489247,1735007444359,-437.09,0.00013753,2]
[346489248,1735007444368,-437.09,0.00013753,2]
[346489250,1735007444377,-700.0,0.000138,5]
[346489252,1735007444387,-150.0,0.00013822,2]
[346489254,1735007444400,-565.0,0.00013822,2]
[346489256,1735007444410,-633.0,0.00013822,2]
[346489258,1735007444419,-1899.0,0.00013822,2]
[346489260,1735007444428,-3771.0,0.00013822,2]
[346489262,1735007444438,-1256.0,0.00013822,2]
[346489264,1735007444447,-924.0,0.00013822,2]
[346489266,1735007444456,-818.0,0.00013822,2]
[346489268,1735007444465,-536.0,0.00013822,2]
[346489270,1735007444476,-3683.0,0.00013822,2]
[346489272,1735007444487,-2011.0,0.00013822,2]
[346489274,1735007444496,-150.0,0.00013822,2]
[346489276,1735007444505,-1265.0,0.00013822,2]
[346489278,1735007444514,-3888.0,0.00013822,2]
[346489280,1735007444524,-2000.0,0.00013835,2]
[346489282,1735007444533,-200.0,0.00013835,2]
[346489284,1735007444543,-191.3276945,0.00013872,2]
[346489286,1735007444552,-648.08068878,0.00013872,2]
[346489288,1735007444561,-1000.0,0.000139,5]
[346489290,1735007444571,-5694.64021943,0.00013902,2]
[346489292,1735007444580,-1034.50532102,0.00013961,2]
[346489294,1735007444590,-25061.90055608,0.0001397,2]
[346489296,1735007444599,-336.88048585,0.00013971,2]
[346489298,1735007444608,-500.0,0.00013971,2]
[346489300,1735007444618,-500.0,0.00013971,2]
[346489302,1735007444628,-500.0,0.00013971,2]
[346489304,1735007444638,-500.0,0.00013971,2]
[346489306,1735007444648,-415.59224849,0.00013971,2]
[346489308,1735007444657,-500.0,0.00013971,2]
[346489310,1735007444667,-516.70991552,0.00013971,2]
[346489312,1735007444676,-500.0,0.00013971,2]
[346489314,1735007444686,-500.0,0.00013971,2]
[346489316,1735007444696,-500.0,0.00013971,2]
[346489318,1735007444705,-500.0,0.00013971,2]
[346489320,1735007444715,-500.0,0.00013971,2]
[346489322,1735007444725,-500.0,0.00013971,2]
[346489324,1735007444738,-500.0,0.00013971,2]
[346489326,1735007444747,-500.0,0.00013971,2]
[346489328,1735007444756,-500.0,0.00013971,2]
[346489330,1735007444766,-1731.0,0.00013972,2]
[346489332,1735007444775,-500.0,0.00013972,2]
[346489334,1735007444784,-500.0,0.00013972,2]
[346489336,1735007444794,-428.28970828,0.00013972,2]
[346489338,1735007444803,-618.88,0.00013972,2]
[346489340,1735007444813,-500.0,0.00013972,2]
[346489342,1735007444822,-500.0,0.00013972,2]
[346489344,1735007444831,-500.0,0.00013972,2]
[346489346,1735007444841,-616.73,0.00013972,2]
[346489348,1735007444850,-500.0,0.00013972,2]
[346489350,1735007444860,-652.108415,0.00013972,2]
[346489352,1735007444869,-500.0,0.00013972,2]
[346489354,1735007444879,-546.46,0.00013972,2]
[346489356,1735007444888,-687.91,0.00013972,2]
[346489358,1735007444899,-500.0,0.00013972,2]
[346489360,1735007444908,-644.092414,0.00013972,2]
[346489362,1735007444918,-500.0,0.00013972,2]
[346489364,1735007444928,-500.0,0.00013972,2]
[346489366,1735007444937,-500.0,0.00013972,2]
[346489368,1735007444947,-546.67,0.00013972,2]
[346489370,1735007444956,-500.0,0.00013972,2]
[346489372,1735007444965,-500.0,0.00013972,2]
[346489374,1735007444974,-510.91545902,0.00013972,2]
[346489376,1735007444984,-553.98,0.00013972,2]
[346489378,1735007444994,-597.92,0.00013972,2]
[346489380,1735007445003,-500.0,0.00013972,2]
[346489382,1735007445013,-500.0,0.00013972,2]
[346489384,1735007445022,-593.7,0.00013972,2]
[346489386,1735007445031,-500.0,0.00013972,2]
[346489388,1735007445040,-500.0,0.00013972,2]
[346489390,1735007445050,-500.0,0.00013972,2]
[346489392,1735007445060,-500.0,0.00013972,2]
[346489394,1735007445069,-735.6,0.00013972,2]